[Event "Late-Titled-Tuesday-Blitz-January-30-2024"]
[Site "Chess.com"]
[Date "2024.01.30"]
[Round "6"]
[White "rhungaski"]
[Black "LUISMIGUELOV"]
[Result "1-0"]
[WhiteElo "2506"]
[BlackElo "2197"]
[TimeControl "180+1"]
[EndTime "15:07:27 PST"]
[Termination "rhungaski won by checkmate"]

1. e4 {[%clk 0:03:00.9]} 1... c6 {[%clk 0:02:40.5]} 2. d4 {[%clk 0:02:59.2]}
2... d5 {[%clk 0:02:40.1]} 3. e5 {[%clk 0:02:59.1]} 3... c5 {[%clk 0:02:40.2]}
4. Nf3 {[%clk 0:02:58.2]} 4... cxd4 {[%clk 0:02:37.7]} 5. Qxd4 {[%clk
0:02:59.1]} 5... Nc6 {[%clk 0:02:36.8]} 6. Qf4 {[%clk 0:02:58.9]} 6... e6 {[%clk
0:02:33.9]} 7. Bd3 {[%clk 0:02:55.5]} 7... Nge7 {[%clk 0:02:32.9]} 8. O-O {[%clk
0:02:51.6]} 8... Ng6 {[%clk 0:02:32.1]} 9. Qg3 {[%clk 0:02:47.1]} 9... Qc7
{[%clk 0:02:29.6]} 10. Re1 {[%clk 0:02:41.8]} 10... Bd7 {[%clk 0:02:27.9]} 11.
c3 {[%clk 0:02:34.3]} 11... Be7 {[%clk 0:02:27]} 12. Nbd2 {[%clk 0:02:11.6]}
12... a6 {[%clk 0:02:26]} 13. b4 {[%clk 0:02:02.5]} 13... Rc8 {[%clk 0:02:12.9]}
14. Bb2 {[%clk 0:02:01.1]} 14... f5 {[%clk 0:01:57.8]} 15. Rac1 {[%clk
0:00:54.9]} 15... O-O {[%clk 0:01:55.4]} 16. c4 {[%clk 0:00:42.5]} 16... dxc4
{[%clk 0:01:44.7]} 17. Nxc4 {[%clk 0:00:30.9]} 17... b5 {[%clk 0:01:41.1]} 18.
Nd6 {[%clk 0:00:30.2]} 18... Qb6 {[%clk 0:01:10.1]} 19. Nxc8 {[%clk 0:00:28.3]}
19... Rxc8 {[%clk 0:01:08.8]} 20. h4 {[%clk 0:00:28.6]} 20... Nf8 {[%clk
0:01:05.8]} 21. h5 {[%clk 0:00:24.9]} 21... h6 {[%clk 0:01:05.1]} 22. Red1
{[%clk 0:00:22.8]} 22... Be8 {[%clk 0:01:01.5]} 23. Qh3 {[%clk 0:00:17.2]} 23...
Bxb4 {[%clk 0:00:56.1]} 24. Nd4 {[%clk 0:00:17.5]} 24... Bc5 {[%clk 0:00:47.1]}
25. Rxc5 {[%clk 0:00:13.7]} 25... Qxc5 {[%clk 0:00:46]} 26. Rc1 {[%clk
0:00:13.2]} 26... Qd5 {[%clk 0:00:43.2]} 27. Bf1 {[%clk 0:00:11.5]} 27... Bd7
{[%clk 0:00:40.6]} 28. Qg3 {[%clk 0:00:10.8]} 28... Nxd4 {[%clk 0:00:39.5]} 29.
Rd1 {[%clk 0:00:09.2]} 29... Bc6 {[%clk 0:00:18.8]} 30. Rxd4 {[%clk 0:00:07.5]}
30... Qxa2 {[%clk 0:00:17]} 31. Bc1 {[%clk 0:00:06.7]} 31... Bd5 {[%clk
0:00:15.6]} 32. Bxh6 {[%clk 0:00:06.7]} 32... Rc7 {[%clk 0:00:13.4]} 33. Bg5
{[%clk 0:00:04.7]} 33... Nh7 {[%clk 0:00:12.6]} 34. Bf6 {[%clk 0:00:04.2]} 34...
Nxf6 {[%clk 0:00:11.1]} 35. exf6 {[%clk 0:00:04.2]} 35... Qa1 {[%clk 0:00:10.2]}
36. Qxc7 {[%clk 0:00:03.5]} 36... Qxd4 {[%clk 0:00:04.5]} 37. Qxg7# {[%clk
0:00:03.7]} 1-0

[Event "Late-Titled-Tuesday-Blitz-January-30-2024"]
[Site "Chess.com"]
[Date "2024.01.30"]
[Round "6"]
[White "SaqoChess_Twitch"]
[Black "Nemsko"]
[Result "0-1"]
[WhiteElo "2617"]
[BlackElo "2396"]
[TimeControl "180+1"]
[EndTime "15:07:28 PST"]
[Termination "Nemsko won by checkmate"]

1. d4 {[%clk 0:03:00.9]} 1... Nf6 {[%clk 0:02:59.8]} 2. c4 {[%clk 0:03:01.4]}
2... e6 {[%clk 0:02:59.7]} 3. Nc3 {[%clk 0:03:02.1]} 3... Bb4 {[%clk 0:02:58.7]}
4. e3 {[%clk 0:03:02.3]} 4... O-O {[%clk 0:02:57.1]} 5. a3 {[%clk 0:03:02.4]}
5... Bxc3+ {[%clk 0:02:56.4]} 6. bxc3 {[%clk 0:03:03.3]} 6... d5 {[%clk
0:02:56.6]} 7. cxd5 {[%clk 0:03:03.1]} 7... exd5 {[%clk 0:02:57.5]} 8. Bd3
{[%clk 0:03:03.2]} 8... c5 {[%clk 0:02:57.9]} 9. Ne2 {[%clk 0:03:03.6]} 9... b6
{[%clk 0:02:58.1]} 10. O-O {[%clk 0:03:04]} 10... Bb7 {[%clk 0:02:58.7]} 11. Ra2
{[%clk 0:03:04.1]} 11... Nc6 {[%clk 0:02:49.6]} 12. f3 {[%clk 0:03:04.5]} 12...
Qe7 {[%clk 0:02:48.7]} 13. g4 {[%clk 0:03:03.7]} 13... Rfe8 {[%clk 0:02:31.2]}
14. Ng3 {[%clk 0:03:04]} 14... g6 {[%clk 0:02:25.1]} 15. h4 {[%clk 0:03:01.6]}
15... Nd7 {[%clk 0:02:20]} 16. Rh2 {[%clk 0:02:59.7]} 16... Nf8 {[%clk
0:02:15.4]} 17. g5 {[%clk 0:02:59]} 17... Qd6 {[%clk 0:02:13.6]} 18. f4 {[%clk
0:02:59.3]} 18... f5 {[%clk 0:02:06.7]} 19. h5 {[%clk 0:02:54.2]} 19... Re7
{[%clk 0:01:57.7]} 20. hxg6 {[%clk 0:02:54.6]} 20... hxg6 {[%clk 0:01:58.6]} 21.
Kg2 {[%clk 0:02:54.9]} 21... Rh7 {[%clk 0:01:58.3]} 22. Rfh1 {[%clk 0:02:54.7]}
22... Re8 {[%clk 0:01:58]} 23. Rxh7 {[%clk 0:02:42.6]} 23... Nxh7 {[%clk
0:01:58.9]} 24. Rxh7 {[%clk 0:02:41.3]} 24... Kxh7 {[%clk 0:01:57.2]} 25. Qh1+
{[%clk 0:02:42.2]} 25... Kg8 {[%clk 0:01:53.1]} 26. Qh6 {[%clk 0:02:41.9]} 26...
Qe6 {[%clk 0:01:27.6]} 27. Kf2 {[%clk 0:02:10.6]} 27... Re7 {[%clk 0:01:21.4]}
28. Qh1 {[%clk 0:01:49.2]} 28... c4 {[%clk 0:01:16.1]} 29. Be2 {[%clk
0:01:47.7]} 29... Na5 {[%clk 0:01:15.2]} 30. Bd1 {[%clk 0:01:35.5]} 30... Nb3
{[%clk 0:01:12.8]} 31. Bxb3 {[%clk 0:01:35.5]} 31... cxb3 {[%clk 0:01:13.7]} 32.
Qf1 {[%clk 0:01:35.8]} 32... Bc6 {[%clk 0:01:11.5]} 33. Qa6 {[%clk 0:01:21.8]}
33... b2 {[%clk 0:00:57.4]} 34. Bxb2 {[%clk 0:01:11.5]} 34... Qxe3+ {[%clk
0:00:57]} 35. Kg2 {[%clk 0:01:12.1]} 35... Qd2+ {[%clk 0:00:47.1]} 36. Kg1
{[%clk 0:01:12.6]} 36... Qxb2 {[%clk 0:00:42.8]} 37. Qc8+ {[%clk 0:01:10.6]}
37... Be8 {[%clk 0:00:43.2]} 38. Qd8 {[%clk 0:00:58.2]} 38... Re1+ {[%clk
0:00:35.7]} 39. Nf1 {[%clk 0:00:58.6]} 39... Qe2 {[%clk 0:00:31.8]} 40. Qxd5+
{[%clk 0:00:57.7]} 40... Bf7 {[%clk 0:00:29]} 41. Qa8+ {[%clk 0:00:55.1]} 41...
Kg7 {[%clk 0:00:26.9]} 42. Qg2 {[%clk 0:00:55]} 42... Bc4 {[%clk 0:00:12.5]} 43.
Qb7+ {[%clk 0:00:53.3]} 43... Qe7 {[%clk 0:00:10.7]} 44. Qxe7+ {[%clk
0:00:48.7]} 44... Rxe7 {[%clk 0:00:11.6]} 45. Nd2 {[%clk 0:00:48.5]} 45... Re1+
{[%clk 0:00:10.1]} 46. Kf2 {[%clk 0:00:43.7]} 46... Re2+ {[%clk 0:00:10.3]} 47.
Kg3 {[%clk 0:00:44.2]} 47... Rxd2 {[%clk 0:00:10.6]} 48. a4 {[%clk 0:00:45.1]}
48... Ra2 {[%clk 0:00:10.2]} 49. a5 {[%clk 0:00:46]} 49... Rxa5 {[%clk
0:00:10.6]} 50. Kh4 {[%clk 0:00:45.7]} 50... Ra1 {[%clk 0:00:10.1]} 51. Kg3
{[%clk 0:00:44.9]} 51... a5 {[%clk 0:00:09]} 52. d5 {[%clk 0:00:45.4]} 52...
Bxd5 {[%clk 0:00:09.2]} 53. c4 {[%clk 0:00:45.8]} 53... Bxc4 {[%clk 0:00:08.3]}
54. Kh4 {[%clk 0:00:46.4]} 54... a4 {[%clk 0:00:08.9]} 55. Kh3 {[%clk
0:00:47.1]} 55... a3 {[%clk 0:00:09.6]} 56. Kg3 {[%clk 0:00:48]} 56... a2 {[%clk
0:00:10.1]} 57. Kh4 {[%clk 0:00:48.9]} 57... Rb1 {[%clk 0:00:10.2]} 58. Kg3
{[%clk 0:00:49.7]} 58... a1=Q {[%clk 0:00:10.8]} 59. Kh4 {[%clk 0:00:50.5]}
59... Rh1+ {[%clk 0:00:10.9]} 60. Kg3 {[%clk 0:00:51]} 60... Qe1+ {[%clk
0:00:11.5]} 61. Kf3 {[%clk 0:00:51.3]} 61... Qe2+ {[%clk 0:00:12]} 62. Kg3
{[%clk 0:00:51.7]} 62... Rg1+ {[%clk 0:00:12.6]} 63. Kh3 {[%clk 0:00:51.7]}
63... Qg2+ {[%clk 0:00:12.4]} 64. Kh4 {[%clk 0:00:52.2]} 64... Qg4# {[%clk
0:00:13.3]} 0-1

[Event "Late-Titled-Tuesday-Blitz-January-30-2024"]
[Site "Chess.com"]
[Date "2024.01.30"]
[Round "6"]
[White "egnfanclub"]
[Black "familijatop71"]
[Result "1-0"]
[WhiteElo "2357"]
[BlackElo "2222"]
[TimeControl "180+1"]
[EndTime "15:07:33 PST"]
[Termination "egnfanclub won on time"]

1. e4 {[%clk 0:03:00.9]} 1... d5 {[%clk 0:02:59.8]} 2. exd5 {[%clk 0:03:00.4]}
2... Qxd5 {[%clk 0:03:00.1]} 3. Nc3 {[%clk 0:03:00]} 3... Qa5 {[%clk 0:02:59.8]}
4. Bc4 {[%clk 0:02:59.8]} 4... c6 {[%clk 0:02:59.3]} 5. d3 {[%clk 0:02:59.5]}
5... Nf6 {[%clk 0:02:59.8]} 6. Qe2 {[%clk 0:02:59.1]} 6... Qc7 {[%clk 0:02:58]}
7. Nf3 {[%clk 0:02:53.2]} 7... Nbd7 {[%clk 0:02:57.9]} 8. Bd2 {[%clk 0:02:49.8]}
8... b5 {[%clk 0:02:58]} 9. Bb3 {[%clk 0:02:49.4]} 9... e6 {[%clk 0:02:57.9]}
10. O-O {[%clk 0:02:47.6]} 10... Nc5 {[%clk 0:02:58]} 11. Bg5 {[%clk 0:02:30.2]}
11... Be7 {[%clk 0:02:58]} 12. d4 {[%clk 0:02:09.1]} 12... Nxb3 {[%clk
0:02:57.4]} 13. axb3 {[%clk 0:02:10]} 13... O-O {[%clk 0:02:49.8]} 14. Rfe1
{[%clk 0:02:09]} 14... a6 {[%clk 0:02:38]} 15. Ne4 {[%clk 0:02:09.1]} 15... Nxe4
{[%clk 0:02:35.1]} 16. Qxe4 {[%clk 0:02:10]} 16... Bb7 {[%clk 0:02:29]} 17. Qh4
{[%clk 0:02:04.3]} 17... Bxg5 {[%clk 0:02:26.1]} 18. Nxg5 {[%clk 0:02:05.2]}
18... h6 {[%clk 0:02:25]} 19. Ne4 {[%clk 0:02:04.8]} 19... a5 {[%clk 0:01:48.6]}
20. Re3 {[%clk 0:02:03.8]} 20... Rad8 {[%clk 0:01:36.3]} 21. Rg3 {[%clk
0:01:44]} 21... Kh7 {[%clk 0:01:26]} 22. Re1 {[%clk 0:01:13.5]} 22... Rd5 {[%clk
0:01:25.8]} 23. c4 {[%clk 0:01:08.9]} 23... bxc4 {[%clk 0:01:19.6]} 24. bxc4
{[%clk 0:01:09.8]} 24... Rf5 {[%clk 0:01:04.2]} 25. Qg4 {[%clk 0:01:06.1]} 25...
Rg8 {[%clk 0:00:54.2]} 26. Rh3 {[%clk 0:01:03.5]} 26... c5 {[%clk 0:00:44.3]}
27. d5 {[%clk 0:00:31.1]} 27... Rf4 {[%clk 0:00:36.7]} 28. Ng5+ {[%clk
0:00:26.3]} 28... Kh8 {[%clk 0:00:29.3]} 29. Qh5 {[%clk 0:00:20.3]} 29... Qe7
{[%clk 0:00:13]} 30. dxe6 {[%clk 0:00:16.7]} 30... Rf5 {[%clk 0:00:08.4]} 31. f4
{[%clk 0:00:16]} 31... fxe6 {[%clk 0:00:05.7]} 32. Qg6 {[%clk 0:00:14.4]} 32...
Rf6 {[%clk 0:00:04.5]} 33. Qd3 {[%clk 0:00:10.7]} 33... g6 {[%clk 0:00:03.1]}
34. Rxh6+ {[%clk 0:00:10.1]} 34... Kg7 {[%clk 0:00:03]} 35. Rh7+ {[%clk
0:00:10.9]} 35... Kf8 {[%clk 0:00:03.5]} 36. Rxe7 {[%clk 0:00:11]} 36... Kxe7
{[%clk 0:00:04.4]} 37. Rd1 {[%clk 0:00:09.5]} 37... Rxf4 {[%clk 0:00:03.3]} 38.
Qd7+ {[%clk 0:00:09]} 38... Kf6 {[%clk 0:00:03.9]} 39. Qf7+ {[%clk 0:00:08.6]}
39... Kxg5 {[%clk 0:00:03.8]} 40. Qxg8 {[%clk 0:00:09.3]} 40... Rg4 {[%clk
0:00:04.2]} 41. g3 {[%clk 0:00:09.8]} 1-0

[Event "Late-Titled-Tuesday-Blitz-January-30-2024"]
[Site "Chess.com"]
[Date "2024.01.30"]
[Round "6"]
[White "Rawnsdale"]
[Black "AsaHoffmann"]
[Result "0-1"]
[WhiteElo "2528"]
[BlackElo "2350"]
[TimeControl "180+1"]
[EndTime "15:07:34 PST"]
[Termination "AsaHoffmann won by checkmate"]

1. e4 {[%clk 0:03:00.9]} 1... d6 {[%clk 0:02:56.6]} 2. d4 {[%clk 0:03:00.5]}
2... Nf6 {[%clk 0:02:51.3]} 3. Nc3 {[%clk 0:03:00.5]} 3... c6 {[%clk 0:02:51.2]}
4. Nf3 {[%clk 0:03:00.2]} 4... Bg4 {[%clk 0:02:50.7]} 5. Be2 {[%clk 0:02:58.3]}
5... e6 {[%clk 0:02:50.7]} 6. O-O {[%clk 0:02:53.6]} 6... d5 {[%clk 0:02:50.5]}
7. Ne5 {[%clk 0:02:48.9]} 7... Bxe2 {[%clk 0:02:47.6]} 8. Qxe2 {[%clk
0:02:48.6]} 8... Nbd7 {[%clk 0:02:45.3]} 9. Bg5 {[%clk 0:02:42.1]} 9... Be7
{[%clk 0:02:44.9]} 10. Nxd7 {[%clk 0:02:36]} 10... Qxd7 {[%clk 0:02:44]} 11. e5
{[%clk 0:02:33.4]} 11... Ng8 {[%clk 0:02:43.9]} 12. Be3 {[%clk 0:02:33.4]} 12...
h6 {[%clk 0:02:41.1]} 13. f4 {[%clk 0:02:33.2]} 13... g6 {[%clk 0:02:39.6]} 14.
a4 {[%clk 0:02:28.7]} 14... a5 {[%clk 0:02:38.4]} 15. g4 {[%clk 0:02:19.4]}
15... Bb4 {[%clk 0:02:37]} 16. Nd1 {[%clk 0:01:38.2]} 16... f5 {[%clk
0:02:36.1]} 17. c3 {[%clk 0:01:35]} 17... Bf8 {[%clk 0:02:31.5]} 18. Nf2 {[%clk
0:01:34.2]} 18... Ne7 {[%clk 0:02:31.1]} 19. Nd3 {[%clk 0:01:33.6]} 19... b6
{[%clk 0:02:27.8]} 20. b4 {[%clk 0:01:26]} 20... Nc8 {[%clk 0:02:23]} 21. Rfb1
{[%clk 0:01:15]} 21... Be7 {[%clk 0:02:21.7]} 22. b5 {[%clk 0:01:13.1]} 22...
O-O {[%clk 0:02:19]} 23. Kh1 {[%clk 0:01:05.1]} 23... Kh7 {[%clk 0:02:17.9]} 24.
Nf2 {[%clk 0:01:02]} 24... cxb5 {[%clk 0:02:15.9]} 25. Qxb5 {[%clk 0:01:01.3]}
25... Qxb5 {[%clk 0:02:15]} 26. Rxb5 {[%clk 0:01:01.8]} 26... Ra7 {[%clk
0:02:08.6]} 27. h3 {[%clk 0:01:01.6]} 27... Bd8 {[%clk 0:02:07.6]} 28. Rab1
{[%clk 0:01:01.5]} 28... Rc7 {[%clk 0:02:05.6]} 29. Bd2 {[%clk 0:01:01.1]} 29...
Bh4 {[%clk 0:01:57.4]} 30. Nd3 {[%clk 0:00:59.7]} 30... Be7 {[%clk 0:01:52.5]}
31. Kg2 {[%clk 0:00:59.7]} 31... Rc6 {[%clk 0:01:47.2]} 32. gxf5 {[%clk
0:00:39.1]} 32... gxf5 {[%clk 0:01:46.3]} 33. Kf3 {[%clk 0:00:39.4]} 33... Rg8
{[%clk 0:01:45.7]} 34. Be1 {[%clk 0:00:38]} 34... Bd8 {[%clk 0:01:43.2]} 35.
R5b2 {[%clk 0:00:32.2]} 35... Rc4 {[%clk 0:01:42.8]} 36. Ra1 {[%clk 0:00:28.1]}
36... Rg7 {[%clk 0:01:42.4]} 37. Re2 {[%clk 0:00:27.9]} 37... Rgc7 {[%clk
0:01:39.8]} 38. Nb2 {[%clk 0:00:27.8]} 38... R4c6 {[%clk 0:01:35.3]} 39. Rg2
{[%clk 0:00:25.4]} 39... Rg7 {[%clk 0:01:31.4]} 40. Re2 {[%clk 0:00:23.3]} 40...
Rgc7 {[%clk 0:01:30.7]} 41. Bd2 {[%clk 0:00:23.6]} 41... Na7 {[%clk 0:01:29.2]}
42. Rg1 {[%clk 0:00:19.8]} 42... Rg7 {[%clk 0:01:27.9]} 43. Reg2 {[%clk
0:00:18.9]} 43... Rxg2 {[%clk 0:01:27.2]} 44. Rxg2 {[%clk 0:00:19.8]} 44... b5
{[%clk 0:01:27.2]} 45. axb5 {[%clk 0:00:20.3]} 45... Nxb5 {[%clk 0:01:27.1]} 46.
Na4 {[%clk 0:00:17.9]} 46... Na3 {[%clk 0:01:26.1]} 47. Nc5 {[%clk 0:00:17.1]}
47... Be7 {[%clk 0:01:24.8]} 48. Nd3 {[%clk 0:00:14.3]} 48... Nc4 {[%clk
0:01:22.5]} 49. Be1 {[%clk 0:00:14.4]} 49... a4 {[%clk 0:01:22.4]} 50. Ra2
{[%clk 0:00:14.6]} 50... a3 {[%clk 0:01:22.5]} 51. Ke2 {[%clk 0:00:12.5]} 51...
Rb6 {[%clk 0:01:21]} 52. Nb4 {[%clk 0:00:12.7]} 52... Bxb4 {[%clk 0:01:20.1]}
53. cxb4 {[%clk 0:00:13.6]} 53... Kg6 {[%clk 0:01:19.2]} 54. Kd3 {[%clk
0:00:13.7]} 54... Kh5 {[%clk 0:01:19.1]} 55. Bd2 {[%clk 0:00:13.7]} 55... Kh4
{[%clk 0:01:18.3]} 56. Bc1 {[%clk 0:00:13.9]} 56... Rxb4 {[%clk 0:01:17.2]} 57.
Bxa3 {[%clk 0:00:13]} 57... Rb3+ {[%clk 0:01:17.2]} 58. Ke2 {[%clk 0:00:10.9]}
58... Rxa3 {[%clk 0:01:17.2]} 59. Rc2 {[%clk 0:00:10.6]} 59... Rxh3 {[%clk
0:01:14.5]} 60. Rc1 {[%clk 0:00:08.8]} 60... Kg4 {[%clk 0:01:13.1]} 61. Rg1+
{[%clk 0:00:08.2]} 61... Kxf4 {[%clk 0:01:12.8]} 62. Rg6 {[%clk 0:00:08.9]}
62... Ke4 {[%clk 0:01:11.7]} 63. Rxe6 {[%clk 0:00:07.8]} 63... Rh2+ {[%clk
0:01:11.3]} 64. Kf1 {[%clk 0:00:07.7]} 64... Ne3+ {[%clk 0:01:11.2]} 65. Kg1
{[%clk 0:00:08.1]} 65... Rg2+ {[%clk 0:01:10]} 66. Kh1 {[%clk 0:00:08.7]} 66...
f4 {[%clk 0:01:10.2]} 67. Rf6 {[%clk 0:00:08.6]} 67... f3 {[%clk 0:01:10]} 68.
e6 {[%clk 0:00:08.1]} 68... Ng4 {[%clk 0:01:05.1]} 69. Rxf3 {[%clk 0:00:06]}
69... Kxf3 {[%clk 0:01:04.8]} 70. e7 {[%clk 0:00:06.3]} 70... h5 {[%clk
0:01:03]} 71. e8=Q {[%clk 0:00:05.6]} 71... Nf2# {[%clk 0:01:02.8]} 0-1

[Event "Late-Titled-Tuesday-Blitz-January-30-2024"]
[Site "Chess.com"]
[Date "2024.01.30"]
[Round "6"]
[White "Atousa"]
[Black "BestestBP"]
[Result "0-1"]
[WhiteElo "2386"]
[BlackElo "2268"]
[TimeControl "180+1"]
[EndTime "15:07:37 PST"]
[Termination "BestestBP won by checkmate"]

1. Nf3 {[%clk 0:02:56]} 1... Nf6 {[%clk 0:02:59.7]} 2. g3 {[%clk 0:02:53.4]}
2... e6 {[%clk 0:02:58.4]} 3. Bg2 {[%clk 0:02:53.2]} 3... Be7 {[%clk 0:02:56.5]}
4. O-O {[%clk 0:02:51.6]} 4... O-O {[%clk 0:02:57.1]} 5. b3 {[%clk 0:02:51]}
5... d5 {[%clk 0:02:57.2]} 6. Bb2 {[%clk 0:02:51]} 6... c5 {[%clk 0:02:57.8]} 7.
d3 {[%clk 0:02:46.8]} 7... Nc6 {[%clk 0:02:57.2]} 8. Nbd2 {[%clk 0:02:45.7]}
8... b6 {[%clk 0:02:57.3]} 9. e4 {[%clk 0:02:37.1]} 9... dxe4 {[%clk 0:02:46.7]}
10. dxe4 {[%clk 0:02:33]} 10... Bb7 {[%clk 0:02:47]} 11. Re1 {[%clk 0:02:22.9]}
11... Rc8 {[%clk 0:02:37.7]} 12. c3 {[%clk 0:01:58.4]} 12... Rc7 {[%clk
0:02:14.7]} 13. Qc2 {[%clk 0:01:55.8]} 13... Rd7 {[%clk 0:02:14.9]} 14. Nc4
{[%clk 0:01:52.9]} 14... Ba6 {[%clk 0:02:10.2]} 15. Bf1 {[%clk 0:01:43.3]} 15...
Qc7 {[%clk 0:01:55.5]} 16. Bc1 {[%clk 0:01:24.1]} 16... Bxc4 {[%clk 0:01:45.5]}
17. Bxc4 {[%clk 0:01:23.5]} 17... Rfd8 {[%clk 0:01:45.3]} 18. Bb5 {[%clk
0:01:15]} 18... Ng4 {[%clk 0:01:01.8]} 19. h3 {[%clk 0:01:04.2]} 19... Nge5
{[%clk 0:00:58.7]} 20. Nxe5 {[%clk 0:01:02]} 20... Nxe5 {[%clk 0:00:59.6]} 21.
Kg2 {[%clk 0:00:35.9]} 21... Nd3 {[%clk 0:00:51]} 22. Rf1 {[%clk 0:00:36]} 22...
Rd6 {[%clk 0:00:43.8]} 23. Be3 {[%clk 0:00:36.3]} 23... Ne5 {[%clk 0:00:25.2]}
24. Bf4 {[%clk 0:00:33.6]} 24... Bf6 {[%clk 0:00:23.6]} 25. Rad1 {[%clk
0:00:29.3]} 25... g5 {[%clk 0:00:14.6]} 26. Be3 {[%clk 0:00:20.7]} 26... h6
{[%clk 0:00:12.8]} 27. Qe2 {[%clk 0:00:17.3]} 27... Ng6 {[%clk 0:00:11.4]} 28.
Rxd6 {[%clk 0:00:12.5]} 28... Qxd6 {[%clk 0:00:11.2]} 29. Qc2 {[%clk 0:00:12.2]}
29... Qe5 {[%clk 0:00:07.9]} 30. Bd2 {[%clk 0:00:06.6]} 30... Bg7 {[%clk
0:00:06.3]} 31. Rd1 {[%clk 0:00:05.6]} 31... Kh7 {[%clk 0:00:04.6]} 32. Be2
{[%clk 0:00:05.5]} 32... f5 {[%clk 0:00:04.7]} 33. exf5 {[%clk 0:00:04.9]} 33...
exf5 {[%clk 0:00:05.3]} 34. Bd3 {[%clk 0:00:04.5]} 34... Qd5+ {[%clk 0:00:05.6]}
35. Kg1 {[%clk 0:00:03.3]} 35... Qxd3 {[%clk 0:00:06.1]} 36. Qc1 {[%clk
0:00:03.2]} 36... f4 {[%clk 0:00:05.9]} 37. Re1 {[%clk 0:00:02.2]} 37... Qxd2
{[%clk 0:00:06.1]} 38. Qb1 {[%clk 0:00:02.3]} 38... fxg3 {[%clk 0:00:05.7]} 39.
fxg3 {[%clk 0:00:02.9]} 39... Qd6 {[%clk 0:00:04.4]} 40. Rf1 {[%clk 0:00:03.3]}
40... Qxg3+ {[%clk 0:00:04.9]} 41. Kh1 {[%clk 0:00:03.9]} 41... Rd2 {[%clk
0:00:04.7]} 42. Qxg6+ {[%clk 0:00:03.1]} 42... Kxg6 {[%clk 0:00:04.6]} 43. Rf6+
{[%clk 0:00:03.8]} 43... Kxf6 {[%clk 0:00:04.8]} 44. h4 {[%clk 0:00:04.3]} 44...
Qh2# {[%clk 0:00:05.7]} 0-1

[Event "Late-Titled-Tuesday-Blitz-January-30-2024"]
[Site "Chess.com"]
[Date "2024.01.30"]
[Round "6"]
[White "Dedic8"]
[Black "Ajedrecista3000"]
[Result "0-1"]
[WhiteElo "2794"]
[BlackElo "2606"]
[TimeControl "180+1"]
[EndTime "15:07:48 PST"]
[Termination "Ajedrecista3000 won by checkmate"]

1. d4 {[%clk 0:03:00.9]} 1... Nf6 {[%clk 0:03:00.1]} 2. c4 {[%clk 0:03:01.2]}
2... e6 {[%clk 0:03:00.3]} 3. Nc3 {[%clk 0:03:01.8]} 3... Bb4 {[%clk 0:03:00.7]}
4. e3 {[%clk 0:03:02.5]} 4... O-O {[%clk 0:03:00.3]} 5. Bd3 {[%clk 0:03:03.2]}
5... d5 {[%clk 0:03:00.6]} 6. a3 {[%clk 0:03:03.3]} 6... Bxc3+ {[%clk
0:03:00.2]} 7. bxc3 {[%clk 0:03:04.2]} 7... c6 {[%clk 0:02:44.8]} 8. Ne2 {[%clk
0:03:02.4]} 8... b6 {[%clk 0:02:45.1]} 9. cxd5 {[%clk 0:03:02.8]} 9... cxd5
{[%clk 0:02:44.4]} 10. c4 {[%clk 0:03:03.3]} 10... Ba6 {[%clk 0:02:41.8]} 11.
cxd5 {[%clk 0:03:03]} 11... Bxd3 {[%clk 0:02:41.7]} 12. Qxd3 {[%clk 0:03:03.9]}
12... Qxd5 {[%clk 0:02:38.3]} 13. f3 {[%clk 0:03:04.3]} 13... Nc6 {[%clk
0:02:36.2]} 14. e4 {[%clk 0:03:03.6]} 14... Qd7 {[%clk 0:02:32.2]} 15. Bg5
{[%clk 0:03:03.7]} 15... Rac8 {[%clk 0:02:15.4]} 16. Bxf6 {[%clk 0:03:00.1]}
16... gxf6 {[%clk 0:02:16.3]} 17. O-O {[%clk 0:02:58.6]} 17... Rfd8 {[%clk
0:02:15.8]} 18. Rad1 {[%clk 0:02:53.2]} 18... Ne7 {[%clk 0:02:13.5]} 19. Ng3
{[%clk 0:02:49.8]} 19... Ng6 {[%clk 0:01:44.6]} 20. Nh5 {[%clk 0:02:43.6]} 20...
Qe7 {[%clk 0:01:43.8]} 21. Qe3 {[%clk 0:02:43.8]} 21... Kh8 {[%clk 0:01:36.8]}
22. Rc1 {[%clk 0:02:19.8]} 22... f5 {[%clk 0:01:20.3]} 23. Qh6 {[%clk
0:01:28.3]} 23... Qf8 {[%clk 0:01:17.8]} 24. Qg5 {[%clk 0:01:28.4]} 24... Qe7
{[%clk 0:01:11.2]} 25. Nf6 {[%clk 0:01:28]} 25... Kg7 {[%clk 0:01:06.3]} 26. e5
{[%clk 0:01:25.6]} 26... h6 {[%clk 0:00:36.4]} 27. Qe3 {[%clk 0:01:18.3]} 27...
Qb7 {[%clk 0:00:27.8]} 28. d5 {[%clk 0:00:43.8]} 28... exd5 {[%clk 0:00:21.9]}
29. Nh5+ {[%clk 0:00:44.1]} 29... Kh7 {[%clk 0:00:21.3]} 30. Nf6+ {[%clk
0:00:44.8]} 30... Kg7 {[%clk 0:00:21.7]} 31. Qd4 {[%clk 0:00:45.2]} 31... Qe7
{[%clk 0:00:16]} 32. Nh5+ {[%clk 0:00:45.3]} 32... Kh7 {[%clk 0:00:16.1]} 33.
Nf6+ {[%clk 0:00:31.9]} 33... Kg7 {[%clk 0:00:15.5]} 34. f4 {[%clk 0:00:24.1]}
34... Rc5 {[%clk 0:00:14.1]} 35. Nh5+ {[%clk 0:00:21]} 35... Kh7 {[%clk
0:00:14.2]} 36. h3 {[%clk 0:00:16.6]} 36... Rdc8 {[%clk 0:00:13.4]} 37. Rcd1
{[%clk 0:00:16.7]} 37... Rc2 {[%clk 0:00:09]} 38. Qxd5 {[%clk 0:00:14.1]} 38...
Nh4 {[%clk 0:00:08]} 39. g3 {[%clk 0:00:07.3]} 39... Qxa3 {[%clk 0:00:03.8]} 40.
Nf6+ {[%clk 0:00:05.2]} 40... Kg6 {[%clk 0:00:03.8]} 41. Rd3 {[%clk 0:00:04.3]}
41... Qb2 {[%clk 0:00:02.8]} 42. gxh4 {[%clk 0:00:01.4]} 42... R8c3 {[%clk
0:00:03.7]} 43. Rxc3 {[%clk 0:00:01.4]} 43... Qxc3 {[%clk 0:00:04.6]} 44. Rf3
{[%clk 0:00:01.8]} 44... Qe1+ {[%clk 0:00:04.3]} 45. Rf1 {[%clk 0:00:01.1]}
45... Qg3+ {[%clk 0:00:04.9]} 46. Kh1 {[%clk 0:00:01.5]} 46... Qxh3+ {[%clk
0:00:05.5]} 47. Kg1 {[%clk 0:00:01.6]} 47... Qh2# {[%clk 0:00:06.2]} 0-1